fUST/lending_fUST_20260129
["ID","MTS","AMOUNT","RATE_DAILY","PERIOD"]
[403878236,1769619042312,-347.10088932,0.00030684,5]
[403878237,1769619042321,-169.33681227,0.00030684,5]
[403878238,1769619042330,-151.0,0.00030684,5]
[403878239,1769619042340,-500.0,0.00030684,5]
[403878240,1769619042350,-289.41339882,0.00030684,5]
[403878241,1769619042359,-1000.0,0.00030684,5]
[403878243,1769619042368,-151.0,0.00030684,5]
[403878245,1769619042377,-1000.0,0.00030684,5]
[403878247,1769619042386,-174.61919141,0.00030684,5]
[403878248,1769619042396,-181.08010149,0.00030684,5]
[403878249,1769619042405,-187.78006525,0.00030684,5]
[403878250,1769619042414,-151.0,0.00030684,5]
[403878251,1769619042423,-194.72792766,0.00030684,5]
[403878252,1769619042432,-201.93286099,0.00030684,5]
[403878253,1769619042441,-209.40437684,0.00030684,5]
[403878254,1769619042450,-217.15233878,0.00030684,5]
[403878255,1769619042459,-225.18697532,0.00030684,5]
[403878256,1769619042468,-233.51889341,0.00030684,5]
[403878257,1769619042477,-242.15909246,0.00030684,5]
[403878258,1769619042486,-251.11897888,0.00030684,5]
[403878259,1769619042495,-260.4103811,0.00030684,5]
[403878260,1769619042505,-270.0455652,0.00030684,5]
[403878261,1769619042513,-280.03725112,0.00030684,5]
[403878262,1769619042523,-290.39862941,0.00030684,5]
[403878263,1769619042532,-301.1433787,0.00030684,5]
[403878264,1769619042541,-161.68161754,0.00030685,30]
[403878265,1769619042551,-750.0,0.00030685,5]
[403878266,1769619042560,-1624.671878,0.000307,4]
[403878267,1769619042569,-250.0,0.000307,10]
[403878268,1769619042578,-5080.27076946,0.000307,2]
[403878269,1769619042587,-151.0,0.00030707,14]
[403878270,1769619042597,-500.0,0.0003073,11]
[403878271,1769619042606,-500.0,0.0003073,11]
[403878272,1769619042615,-1998474.36682102,0.0003074,30]
[403878273,1769619042680,-3243.73306436,0.0003074,30]
[403878274,1769619042692,-747.202766,0.0003074,30]
[403878275,1769619042703,-484.86821652,0.0003074,30]
[403878276,1769619042714,-1073.84174204,0.0003074,30]
[403878277,1769619042725,-605.56055183,0.0003074,30]
[403878288,1769619044366,-303.10001603,0.000189,2]
[403878289,1769619044375,-303.10001604,0.00019089,2]
[403878290,1769619044505,-500.0,0.00021792,2]
[403878291,1769619044515,-500.0,0.00022882,2]
[403878292,1769619044524,-6494.11,0.0002999,10]
[403878293,1769619044534,-3039.49655736,0.0003074,30]
[403878294,1769619044545,-300.0,0.0003074,30]
[403878295,1769619044555,-824062.16505212,0.0003074,30]
[403878296,1769619044566,-2273.25012025,0.0003074,30]
[403878297,1769619044577,-392.72318,0.0003074,30]
[403878298,1769619044587,-2952.16730467,0.0003074,30]
[403878324,1769619045914,-500.0,0.00020702,2]
[403878325,1769619045924,-5106.48956887,0.0003074,30]
[403878326,1769619045967,-10124.53119502,0.0003074,30]
[403878327,1769619045979,-1436.96977349,0.0003074,30]
[403878328,1769619407614,-1000.0,0.0001138,2]
[403878329,1769619408835,-1000.0,0.0001138,2]
[403878330,1769619409248,-1000.0,0.0001138,2]
[403878331,1769619409722,-1000.0,0.0001138,2]
[403878332,1769619410056,-1000.0,0.0001138,2]
[403878333,1769619427945,-193.92379667,0.00012326,2]
[403878334,1769619636692,-316.20523184,0.00013273,2]
[403878395,1769620231758,-164.761643,0.00012449,2]
[403878396,1769620231768,-300.0,0.00013042,2]
[403878397,1769620231777,-300.0,0.00013042,2]
[403878398,1769620231786,-300.0,0.00013042,2]
[403878399,1769620231795,-1200.0,0.00013042,2]
[403878400,1769620231804,-605.0,0.00013042,2]
[403878401,1769620231813,-301.995625,0.00013043,2]
[403878402,1769620231823,-34593.6364767,0.00013043,2]
[403878403,1769620231832,-285.18191995,0.00013272,2]
[403878404,1769620231842,-500.0,0.00013273,2]
[403878405,1769620231851,-500.0,0.00013273,2]
[403878406,1769620231860,-500.0,0.00013273,2]
[403878407,1769620231869,-500.0,0.00013273,2]
[403878408,1769620231878,-500.0,0.00013273,2]
[403878409,1769620231887,-500.0,0.00013273,2]
[403878410,1769620231896,-500.0,0.00013477,2]
[403878411,1769620231906,-500.0,0.00013477,2]
[403878412,1769620231916,-500.0,0.00013477,2]
[403878413,1769620231926,-500.0,0.00013477,2]
[403878414,1769620231935,-500.0,0.00013477,2]
[403878415,1769620231944,-500.0,0.00013477,2]
[403878416,1769620231954,-500.0,0.00013477,2]
[403878417,1769620231964,-646.08653296,0.00013477,2]
[403878418,1769620231973,-500.0,0.00013477,2]
[403878419,1769620231982,-500.0,0.00013477,2]
[403878420,1769620232004,-500.0,0.00013477,2]
[403878421,1769620232014,-500.0,0.00013477,2]
[403878422,1769620232024,-500.0,0.00013477,2]
[403878423,1769620232034,-500.0,0.00013477,2]
[403878424,1769620232043,-500.0,0.00013477,2]
[403878425,1769620232053,-500.0,0.00013477,2]
[403878426,1769620232063,-500.0,0.00013477,2]
[403878427,1769620232073,-500.0,0.00013477,2]
[403878428,1769620232083,-500.0,0.00013477,2]
[403878429,1769620232093,-500.0,0.00013477,2]
[403878430,1769620232103,-500.0,0.00013477,2]
[403878431,1769620232113,-500.0,0.00013477,2]
[403878432,1769620232122,-500.0,0.00013477,2]
[403878433,1769620232132,-500.0,0.00013477,2]
[403878434,1769620232142,-500.0,0.00013477,2]
[403878435,1769620232151,-500.0,0.00013477,2]
[403878436,1769620232161,-500.0,0.00013477,2]
[403878437,1769620232171,-500.0,0.00013477,2]
[403878438,1769620232181,-500.0,0.00013477,2]
[403878439,1769620232191,-500.0,0.00013477,2]
[403878440,1769620232201,-500.0,0.00013477,2]
[403878441,1769620232211,-500.0,0.00013477,2]
[403878442,1769620232221,-473.78237817,0.00013477,2]
[403878443,1769620232231,-500.0,0.00013477,2]
[403878444,1769620232240,-500.0,0.00013477,2]
[403878445,1769620232251,-500.0,0.00013477,2]
[403878446,1769620232261,-500.0,0.00013477,2]
[403878447,1769620232271,-500.0,0.00013477,2]
[403878448,1769620232281,-500.0,0.00013477,2]
[403878449,1769620232292,-500.0,0.00013477,2]
[403878450,1769620232302,-500.0,0.00013477,2]
[403878451,1769620232311,-500.0,0.00013477,2]
[403878452,1769620232321,-500.0,0.00013477,2]
[403878453,1769620232331,-500.0,0.00013477,2]
[403878454,1769620232340,-500.0,0.00013477,2]
[403878455,1769620232350,-500.0,0.00013477,2]
[403878456,1769620232359,-500.0,0.00013477,2]
[403878457,1769620232369,-500.0,0.00013477,2]
[403878458,1769620232379,-607.34215929,0.00013477,2]
[403878459,1769620232389,-500.0,0.00013477,2]
[403878460,1769620232398,-500.0,0.00013477,2]
[403878461,1769620232407,-500.0,0.00013477,2]
[403878462,1769620232416,-500.0,0.00013477,2]
[403878463,1769620232426,-500.0,0.00013477,2]
[403878464,1769620232435,-500.0,0.00013477,2]
[403878465,1769620232444,-500.0,0.00013477,2]
[403878466,1769620232454,-500.0,0.00013477,2]
[403878467,1769620232463,-500.0,0.00013477,2]
[403878468,1769620232472,-500.0,0.00013477,2]
[403878469,1769620232482,-500.0,0.00013477,2]
[403878470,1769620232491,-502.97616631,0.00013477,2]
[403878471,1769620232500,-500.0,0.00013477,2]
[403878472,1769620232510,-500.0,0.00013477,2]
[403878473,1769620232519,-500.0,0.00013477,2]
[403878474,1769620232529,-500.0,0.00013477,2]
[403878475,1769620232539,-500.0,0.00013477,2]
[403878476,1769620232548,-500.0,0.00013477,2]
[403878477,1769620232558,-500.0,0.00013477,2]
[403878478,1769620232567,-500.0,0.00013477,2]
[403878479,1769620232576,-500.0,0.00013477,2]
[403878480,1769620232586,-500.0,0.00013477,2]
[403878481,1769620232595,-500.0,0.00013477,2]
[403878482,1769620232604,-500.0,0.00013477,2]
[403878483,1769620232614,-500.0,0.00013477,2]
[403878484,1769620232623,-500.0,0.00013477,2]
[403878485,1769620232632,-500.0,0.00013477,2]
[403878486,1769620232642,-250.0,0.00013477,2]
[403878487,1769620232651,-500.0,0.00013477,2]
[403878488,1769620232661,-500.0,0.00013478,2]
[403878489,1769620232670,-34610.02346044,0.00013479,2]
[403878498,1769620237806,-17524.34256421,0.00013479,2]
[403878499,1769620237817,-8180.97126027,0.00013479,2]
[403878500,1769620237826,-300.0,0.00013673,2]
[403878501,1769620237835,-500.0,0.00013698,2]
[403878502,1769620237844,-500.0,0.00013698,2]
[403878503,1769620237854,-520.34475145,0.00013698,2]
[403878504,1769620237863,-500.0,0.00013699,2]
[403878505,1769620237872,-500.0,0.00013699,2]
[403878506,1769620237881,-500.0,0.00013699,2]
[403878507,1769620237890,-500.0,0.00013699,2]
[403878508,1769620237899,-626.86038304,0.00013699,2]
[403878509,1769620237908,-175.49146446,0.00013699,2]
[403878510,1769620237917,-500.0,0.00013699,2]
[403878511,1769620237927,-500.0,0.00013699,2]
[403878512,1769620237936,-500.0,0.00013699,2]
[403878513,1769620237945,-213.84661778,0.00013699,2]
[403878514,1769620237954,-500.0,0.00013699,2]
[403878515,1769620237963,-443.49274844,0.00013699,2]
[403878516,1769620237973,-500.0,0.00013699,2]
[403878517,1769620237982,-500.0,0.00013699,2]
[403878518,1769620237991,-320.04248703,0.00013699,2]
[403878519,1769620238001,-506.10991888,0.00013699,2]
[403878520,1769620238012,-500.41621604,0.00013699,2]
[403878521,1769620238020,-500.0,0.00013699,2]
[403878522,1769620238030,-500.0,0.00013699,2]
[403878523,1769620238040,-500.0,0.00013699,2]
[403878524,1769620238049,-500.0,0.00013699,2]
[403878525,1769620238059,-500.0,0.00013699,2]
[403878526,1769620238068,-500.0,0.00013699,2]
[403878527,1769620238080,-500.0,0.00013699,2]
[403878528,1769620238089,-500.0,0.00013699,2]
[403878529,1769620238098,-500.0,0.00013699,2]
[403878530,1769620238108,-500.0,0.00013699,2]
[403878531,1769620238117,-500.0,0.00013699,2]
[403878532,1769620238126,-500.0,0.00013699,2]
[403878533,1769620238135,-500.0,0.00013699,2]
[403878534,1769620238144,-501.77042598,0.00013699,2]
[403878535,1769620238153,-795.51234803,0.00013821,2]
[403878536,1769620238163,-1000.0,0.00013821,2]
[403878537,1769620238172,-1000.0,0.00013821,2]
[403878538,1769620238182,-1000.0,0.00013821,2]
[403878539,1769620238192,-1000.0,0.00013821,2]
[403878540,1769620238202,-1000.0,0.00013821,2]
[403878541,1769620238211,-2736.94264847,0.00014,2]
[403878542,1769620238220,-600.0,0.00014221,2]
[403878543,1769620238230,-341.02216059,0.00014247,2]
[403878544,1769620238239,-1000.0,0.00014247,2]
[403878545,1769620238248,-1000.0,0.00014247,2]
[403878546,1769620238258,-1000.0,0.00014247,2]
[403878547,1769620238267,-300.60461598,0.00014247,2]
[403878548,1769620238276,-509.85507396,0.00014247,2]
[403878549,1769620238286,-250.0,0.00014247,2]
[403878550,1769620238300,-159.31465189,0.00014247,2]
[403878551,1769620238309,-1003.36640104,0.00014247,2]
[403878552,1769620238318,-898.31661661,0.00014247,2]
[403878553,1769620238329,-501.75253763,0.00014247,2]
[403878554,1769620238338,-1000.0,0.00014247,2]
[403878555,1769620238347,-505.03835844,0.00014247,2]
[403878556,1769620238357,-501.48666107,0.00014247,2]
[403878557,1769620238366,-1001.40716094,0.00014247,2]
[403878558,1769620238375,-501.67094293,0.00014247,2]
[403878559,1769620238385,-1134.23032778,0.00014247,2]
[403878560,1769620238394,-1000.0,0.00014247,2]
[403878561,1769620238404,-378.71570647,0.00014247,2]
[403878562,1769620238413,-722.3651231,0.00014247,2]
[403878563,1769620238422,-653.47281249,0.00014247,2]
[403878564,1769620238432,-508.49522103,0.00014247,2]
[403878565,1769620238441,-1000.0,0.00014247,2]
[403878566,1769620238450,-194.0,0.00014302,2]
[403878567,1769620238460,-420.0,0.00014302,2]
[403878568,1769620238469,-1680.0,0.00014346,2]
[403878569,1769620238478,-1500.0,0.00014368,2]
[403878570,1769620238487,-1500.0,0.00014368,2]
[403878571,1769620238497,-1500.0,0.00014368,2]
[403878572,1769620238506,-1500.0,0.00014368,2]
[403878573,1769620238515,-1500.0,0.00014368,2]
[403878574,1769620238524,-500.0,0.00014528,2]
[403878575,1769620238533,-245.05641761,0.00014528,2]
[403878576,1769620238542,-300.0,0.0001453,2]
[403878577,1769620238551,-300.0,0.0001453,2]
[403878578,1769620238561,-300.0,0.0001453,2]
[403878579,1769620238570,-300.0,0.0001453,2]
[403878580,1769620238580,-300.0,0.0001453,2]
[403878581,1769620238589,-300.0,0.0001453,2]
[403878582,1769620238598,-300.0,0.0001453,2]
[403878583,1769620238607,-300.0,0.0001453,2]
[403878584,1769620238617,-300.0,0.0001453,2]
[403878585,1769620238626,-300.0,0.0001453,2]
[403878586,1769620238636,-300.0,0.0001453,2]
[403878587,1769620238645,-300.0,0.0001453,2]
[403878588,1769620238654,-300.0,0.0001453,2]
[403878589,1769620238663,-300.0,0.0001453,2]
[403878590,1769620238673,-300.0,0.0001453,2]
[403878591,1769620238682,-900.0,0.00014768,2]
[403878592,1769620238691,-696.49020811,0.00014795,2]
[403878593,1769620238700,-300.0,0.00014795,2]
[403878594,1769620238709,-500.0,0.00014795,2]
[403878595,1769620238718,-500.68775555,0.00014795,2]
[403878596,1769620238727,-526.28781016,0.00014795,2]
[403878597,1769620238738,-1500.0,0.00014916,2]
[403878598,1769620238747,-1500.0,0.00014916,2]
[403878599,1769620238756,-2000.0,0.00014916,2]
[403878600,1769620238766,-2000.0,0.00014916,2]
[403878601,1769620238775,-2000.0,0.00014916,2]
[403878602,1769620238784,-336.51466554,0.00015272,2]
[403878603,1769620238793,-300.0,0.00015316,2]
[403878604,1769620238803,-1000.0,0.00015464,2]
[403878605,1769620238812,-2006.71511543,0.00015464,2]
[403878606,1769620238821,-2574.12268118,0.00015464,2]
[403878607,1769620238831,-600.0,0.00015648,2]
[403878608,1769620238840,-587.0,0.00015683,2]
[403878609,1769620238849,-2351.0,0.0001578,2]
[403878610,1769620238859,-150.42150351,0.00016438,2]
[403878611,1769620238868,-170.0,0.00016658,3]
[403878612,1769620238877,-160.0,0.00017096,2]
[403878613,1769620238887,-823.0,0.00017199,2]
[403878614,1769620238897,-720.0,0.00017213,2]
[403878615,1769620238906,-387.84741113,0.00017272,2]
[403878616,1769620238916,-249.0,0.00017358,2]
[403878617,1769620238925,-30758.83700422,0.0001799,2]
[403878618,1769620238934,-4445.23692327,0.00018278,2]
[403878619,1769620238943,-1720000.0,0.00018397,2]
[403878620,1769620238952,-743.87,0.00018397,2]
[403878621,1769620238962,-743.87,0.00018397,2]
[403878622,1769620238971,-743.87,0.00018397,2]
[403878623,1769620238981,-743.87,0.00018397,2]
[403878624,1769620238990,-743.87,0.00018397,2]
[403878625,1769620239001,-743.87,0.00018397,2]
[403878626,1769620239012,-743.87,0.00018397,2]
[403878627,1769620239022,-743.87,0.00018397,2]
[403878628,1769620239031,-743.87,0.00018397,2]
[403878629,1769620239043,-743.87,0.00018397,2]
[403878630,1769620239053,-743.87,0.00018397,2]
[403878631,1769620239063,-743.87,0.00018397,2]
[403878632,1769620239072,-743.87,0.00018397,2]
[403878633,1769620239083,-743.87,0.00018397,2]
[403878634,1769620239092,-743.87,0.00018397,2]
[403878635,1769620239102,-743.87,0.00018397,2]
[403878636,1769620239112,-743.87,0.00018397,2]
[403878637,1769620239122,-743.87,0.00018397,2]
[403878638,1769620239131,-743.87,0.00018397,2]
[403878639,1769620239141,-743.87,0.00018397,2]
[403878640,1769620239156,-743.87,0.00018397,2]
[403878641,1769620239166,-743.87,0.00018397,2]
[403878642,1769620239176,-743.87,0.00018397,2]
[403878643,1769620239185,-743.87,0.00018397,2]
[403878644,1769620239195,-743.87,0.00018397,2]
[403878645,1769620239205,-743.87,0.00018397,2]
[403878646,1769620239217,-743.87,0.00018397,2]
[403878647,1769620239227,-743.87,0.00018397,2]
[403878648,1769620239237,-743.87,0.00018397,2]
[403878649,1769620239247,-743.87,0.00018397,2]
[403878650,1769620239257,-743.87,0.00018397,2]
[403878651,1769620239267,-743.87,0.00018397,2]
[403878652,1769620239277,-743.87,0.00018397,2]
[403878653,1769620239287,-1319.7,0.00018397,2]
[403878654,1769620239297,-487.0,0.00018397,2]
[403878655,1769620239307,-487.0,0.00018397,2]
[403878656,1769620239317,-487.0,0.00018397,2]
[403878657,1769620239327,-487.0,0.00018397,2]
[403878658,1769620239337,-160.0,0.00018474,2]
[403878659,1769620239346,-1041.66666667,0.00018474,2]
[403878660,1769620239356,-500.0,0.00018684,2]
[403878661,1769620239366,-1152.0,0.00018861,2]
[403878662,1769620239377,-864.0,0.00018934,2]
[403878663,1769620239387,-439.18015672,0.00019272,2]
[403878664,1769620239396,-5520.1,0.000193,2]
[403878665,1769620239405,-175.69,0.000193,2]
[403878666,1769620239415,-1381.6,0.000193,2]
[403878667,1769620239424,-500.0,0.00019667,2]
[403878668,1769620239434,-1613.0,0.00020683,2]
[403878669,1769620239444,-4445.23692327,0.00020728,2]
[403878670,1769620239453,-1000.0,0.00020828,2]
[403878671,1769620239470,-490.51290231,0.00021272,2]
[403878672,1769620239482,-10000.0,0.00021837,2]
[403878673,1769620239493,-293.17,0.000221,7]
[403878674,1769620239504,-157.72,0.000224,2]
[403878675,1769620239515,-1000.0,0.00022911,10]
[403878676,1769620239525,-244.0,0.00022911,10]
[403878677,1769620239535,-4445.23692327,0.00023178,2]
[403878678,1769620239546,-541.8456479,0.00023272,2]
[403878679,1769620239556,-500.0,0.00024026,2]
[403878680,1769620239566,-1381.6,0.000244,14]
[403878681,1769620239576,-630.0,0.00024532,2]
[403878683,1769620239586,-1369.0,0.00024532,2]
[403878686,1769620239596,-418.0,0.00024532,2]
[403878689,1769620239606,-418.0,0.00024532,2]
[403878692,1769620239616,-716.0,0.00024532,2]
[403878694,1769620239626,-180.381,0.00024532,2]
[403878696,1769620239636,-380.0,0.00024658,2]
[403878698,1769620239650,-610879.379074,0.000249,2]
[403878700,1769620239660,-1000.0,0.00025202,10]
[403878702,1769620239670,-492.0,0.00025202,10]
[403878704,1769620239679,-333.10205309,0.00025227,2]
[403878706,1769620239689,-593.17839349,0.00025272,2]
[403878708,1769620239696,-3507.40954272,0.00025597,2]
[403878710,1769620239702,-4445.23692327,0.00025628,2]
[403878712,1769620239718,-159.0,0.00025973,18]
[403878714,1769620239728,-5520.1,0.000261,2]
[403878716,1769620239738,-2150.0,0.0002656,2]
[403878718,1769620239747,-293.17,0.000269,7]
[403878720,1769620239757,-167.0,0.00027,7]
[403878722,1769620239767,-500.0,0.00027199,2]
[403878723,1769620239776,-644.51113908,0.00027272,2]
[403878725,1769620239786,-3507.40954272,0.00027423,2]
[403878726,1769620239796,-630.0,0.00027532,2]
[403878727,1769620239805,-1369.0,0.00027532,2]
[403878729,1769620239815,-418.0,0.00027532,2]
[403878731,1769620239824,-418.0,0.00027532,2]
[403878733,1769620239833,-716.0,0.00027532,2]
[403878734,1769620239842,-179.0,0.00027532,2]
[403878735,1769620239851,-1000.0,0.00027722,30]
[403878736,1769620239860,-791.0,0.00027722,30]
[403878737,1769620239870,-250.0,0.00027945,5]
[403878738,1769620239879,-250.0,0.00027945,5]
[403878739,1769620239888,-4445.23692327,0.00028078,2]
[403878740,1769620239898,-4246.65524428,0.00028387,2]
[403878741,1769620239907,-1957.856,0.00028387,2]
[403878742,1769620239917,-400.0,0.000284,3]
[403878743,1769620239926,-2030.296672,0.00028442,2]
[403878744,1769620239935,-350.0,0.00028493,5]
[403878746,1769620240087,-350.0,0.00028493,5]
[403878747,1769620240097,-2105.41764886,0.00028497,2]
[403878748,1769620240107,-157.72,0.000285,2]
[403878749,1769620240116,-377.351,0.00028534,20]
[403878750,1769620240125,-200.892,0.00028534,20]
[403878751,1769620240134,-2183.31810187,0.00028552,2]
[403878752,1769620240143,-2264.10087164,0.00028607,2]
[403878753,1769620240153,-730.0,0.00028622,3]
[403878754,1769620240162,-2347.87260389,0.00028662,2]
[403878755,1769620240171,-175.69,0.000287,7]
[403878756,1769620240181,-1381.6,0.000287,14]
[403878757,1769620240190,-2434.74389024,0.00028717,2]
[403878758,1769620240200,-5000.0,0.00028724,17]
[403878759,1769620240212,-2524.82941417,0.00028772,2]
[403878760,1769620240221,-2618.2481025,0.00028827,2]
[403878761,1769620240231,-2673.39914073,0.00028882,2]
[403878762,1769620240240,-190.69263435,0.00028986,5]
[403878763,1769620240250,-450.0,0.00029041,5]
[403878764,1769620240259,-450.0,0.00029041,5]
[403878765,1769620240268,-3507.40954272,0.00029248,2]
[403878766,1769620240277,-695.84388467,0.00029272,2]
[403878767,1769620240287,-161.0,0.00029307,3]
[403878768,1769620240296,-400.0,0.00029353,3]
[403878769,1769620240305,-161.0,0.00029405,3]
[403878770,1769620240314,-400.0,0.00029483,3]
[403878771,1769620240323,-293.17,0.000295,7]
[403878772,1769620240332,-2150.0,0.0002956,2]
[403878773,1769620240342,-550.0,0.00029589,5]
[403878774,1769620240351,-236.57189686,0.00029589,5]
[403878775,1769620240359,-400.0,0.00029626,3]
[403878776,1769620240369,-400.0,0.00029626,3]
[403878777,1769620240379,-400.0,0.00029732,3]
[403878778,1769620240388,-287.6377219,0.00029775,30]
[403878779,1769620240397,-153.0,0.00029775,30]
[403878780,1769620240406,-153.0,0.00029775,30]
[403878781,1769620240415,-153.0,0.00029775,30]
[403878782,1769620240424,-153.0,0.00029775,30]
[403878783,1769620240433,-988.8744102,0.00029779,2]
[403878784,1769620240442,-5520.1,0.000298,2]
[403878785,1769620240451,-190.69263435,0.00029882,5]
[403878786,1769620240462,-10895.0,0.0003,30]
[403878787,1769620240471,-1041.66666667,0.0003,30]
[403878788,1769620240480,-1000.0,0.0003,14]
[403878789,1769620240489,-190.0,0.0003,14]
[403878790,1769620240498,-1000.0,0.0003,14]
[403878791,1769620240507,-178.5494496,0.0003,14]
[403878792,1769620240516,-151.0,0.0003,14]
[403878793,1769620240525,-1000.0,0.00030044,14]
[403878794,1769620240534,-151.0,0.00030053,14]
[403878795,1769620240542,-1000.0,0.00030087,14]
[403878796,1769620240551,-665.3002178,0.000301,2]
[403878797,1769620240560,-2661.2008712,0.000301,2]
[403878798,1769620240569,-5987.7019602,0.000301,2]
[403878799,1769620240578,-151.0,0.00030106,14]
[403878800,1769620240586,-1000.0,0.00030131,14]
[403878801,1769620240596,-300.88317987,0.00030137,2]
[403878802,1769620240605,-1203.53271948,0.00030137,2]
[403878803,1769620240614,-2707.94861882,0.00030137,2]
[403878804,1769620240623,-4814.13087791,0.00030137,2]
[403878805,1769620240632,-7522.07949674,0.00030137,2]
[403878806,1769620240641,-10831.7944753,0.00030137,2]
[403878807,1769620240650,-175.20269643,0.00030137,2]
[403878808,1769620240659,-650.0,0.00030137,5]
[403878809,1769620240668,-151.0,0.00030159,14]
[403878810,1769620240677,-1000.0,0.00030174,14]
[403878811,1769620240686,-151.0,0.00030211,14]
[403878812,1769620240695,-1000.0,0.00030218,14]
[403878813,1769620240704,-1000.0,0.00030247,14]
[403878814,1769620240714,-1000.0,0.00030261,14]
[403878815,1769620240723,-151.0,0.00030264,14]
[403878816,1769620240732,-1000.0,0.00030305,14]
[403878817,1769620240741,-473563.76,0.00030307,6]
[403878818,1769620240750,-73017.81,0.00030307,6]
[403878819,1769620240760,-151.0,0.00030317,14]
[403878820,1769620240769,-153.0,0.00030323,30]
[403878821,1769620240778,-153.0,0.00030323,30]
[403878822,1769620240787,-153.0,0.00030323,30]
[403878823,1769620240796,-153.0,0.00030323,30]
[403878824,1769620240806,-153.0,0.00030323,30]
[403878825,1769620240815,-1000.0,0.00030348,14]
[403878826,1769620240824,-151.0,0.0003037,14]
[403878827,1769620240833,-1000.0,0.00030392,14]
[403878828,1769620240842,-190.0,0.00030411,14]
[403878829,1769620240851,-151.0,0.00030423,14]
[403878830,1769620240861,-1000.0,0.00030435,14]
[403878831,1769620240870,-800.0,0.0003047,2]
[403878832,1769620240879,-151.0,0.00030476,14]
[403878833,1769620240888,-1000.0,0.00030479,14]
[403878834,1769620240901,-800.0,0.00030483,2]
[403878835,1769620240911,-1000.0,0.00030493,14]
[403878836,1769620240920,-1000.0,0.00030494,30]
[403878837,1769620240929,-1000.0,0.00030494,30]
[403878838,1769620240938,-1000.0,0.00030522,14]
[403878839,1769620240950,-4445.23692327,0.00030528,2]
[403878840,1769620240960,-630.0,0.00030532,2]
[403878841,1769620240969,-1369.0,0.00030532,2]
[403878842,1769620240978,-418.0,0.00030532,2]
[403878843,1769620240988,-716.0,0.00030532,2]
[403878844,1769620240998,-179.0,0.00030532,2]
[403878845,1769620241010,-800.0,0.00030538,2]
[403878846,1769620241019,-429.49599009,0.00030544,7]
[403878847,1769620241029,-1000.0,0.00030566,14]
[403878848,1769620241039,-800.0,0.00030567,2]
[403878849,1769620241050,-1000.0,0.00030609,14]
[403878850,1769620241059,-206.36876951,0.00030622,10]
[403878851,1769620241068,-409139.69698532,0.00030625,30]
[403878852,1769620241296,-447.19928567,0.00014528,2]
[403878863,1769620243085,-500.0,0.00013698,2]
[403878864,1769620243094,-309.07071433,0.00014528,2]
[403878865,1769620243103,-756.27,0.00014528,2]
[403878866,1769620243112,-756.27,0.00018389,2]
[403878867,1769620243122,-756.27,0.00018396,2]
[403878868,1769620243131,-756.27,0.00018396,2]
[403878869,1769620243140,-756.27,0.00018396,2]
[403878870,1769620243150,-756.27,0.00018396,2]
[403878871,1769620243158,-756.27,0.00018396,2]
[403878872,1769620243168,-756.27,0.00018396,2]
[403878873,1769620243178,-756.27,0.00018396,2]
[403878874,1769620243187,-756.27,0.00018396,2]
[403878875,1769620243196,-756.27,0.00018396,2]
[403878876,1769620243206,-756.27,0.00018396,2]
[403878877,1769620243216,-756.27,0.00018396,2]
[403878878,1769620243225,-487.0,0.00018397,2]